[Event "*** SCC Grand Prix: Titled Tuesday Blitz"]
[Site "Chess.com"]
[Date "2020.08.25"]
[Round "5"]
[White "K_A_S_T_O_R"]
[Black "bazar-wokzal"]
[Result "1-0"]
[WhiteElo "2718"]
[BlackElo "2480"]
[TimeControl "180+1"]
[EndTime "10:58:04 PDT"]
[Termination "K_A_S_T_O_R won on time"]

1. e4 {[%clk 0:03:00.9]} 1... Nc6 {[%clk 0:02:59]} 2. Nf3 {[%clk 0:03:00.1]}
2... d5 {[%clk 0:02:58.8]} 3. exd5 {[%clk 0:02:58]} 3... Qxd5 {[%clk 0:02:58.9]}
4. Nc3 {[%clk 0:02:57.5]} 4... Qa5 {[%clk 0:02:58.5]} 5. Bb5 {[%clk 0:02:56.6]}
5... Bd7 {[%clk 0:02:58]} 6. O-O {[%clk 0:02:47.6]} 6... a6 {[%clk 0:02:56.9]}
7. Ba4 {[%clk 0:02:45.3]} 7... Nf6 {[%clk 0:02:55.9]} 8. Re1 {[%clk 0:02:44.6]}
8... Qh5 {[%clk 0:02:51.8]} 9. Ne2 {[%clk 0:02:30.2]} 9... g5 {[%clk 0:02:31.4]}
10. Ng3 {[%clk 0:02:26.4]} 10... Qg4 {[%clk 0:02:08.1]} 11. d4 {[%clk
0:02:22.8]} 11... Bc8 {[%clk 0:01:39.4]} 12. h3 {[%clk 0:01:54.4]} 12... Qd7
{[%clk 0:01:36.9]} 13. Bxg5 {[%clk 0:01:53]} 13... Bg7 {[%clk 0:01:30.4]} 14.
Ne5 {[%clk 0:01:23.5]} 14... Qd6 {[%clk 0:01:20.2]} 15. Bxf6 {[%clk 0:01:21.9]}
15... Bxf6 {[%clk 0:01:19.4]} 16. Ne4 {[%clk 0:01:22.3]} 16... Bxe5 {[%clk
0:01:04.3]} 17. Nxd6+ {[%clk 0:01:19.7]} 17... Bxd6 {[%clk 0:01:04.7]} 18. Bxc6+
{[%clk 0:01:04.3]} 18... bxc6 {[%clk 0:01:04.8]} 19. c4 {[%clk 0:01:04.8]} 19...
e6 {[%clk 0:00:55.8]} 20. Qf3 {[%clk 0:01:01.5]} 20... Bd7 {[%clk 0:00:52.5]}
21. c5 {[%clk 0:00:55]} 21... Be7 {[%clk 0:00:52.5]} 22. Qg3 {[%clk 0:00:54.5]}
22... Ra7 {[%clk 0:00:47.6]} 23. Rad1 {[%clk 0:00:52.7]} 23... Kf8 {[%clk
0:00:36.5]} 24. Rd3 {[%clk 0:00:51.7]} 24... Rg8 {[%clk 0:00:35.1]} 25. Qf3
{[%clk 0:00:46.6]} 25... Rb7 {[%clk 0:00:31.3]} 26. Rb3 {[%clk 0:00:46.2]} 26...
Rb5 {[%clk 0:00:30.7]} 27. a4 {[%clk 0:00:44.2]} 27... Rxb3 {[%clk 0:00:29.2]}
28. Qxb3 {[%clk 0:00:45.1]} 28... Bd8 {[%clk 0:00:25.3]} 29. Re3 {[%clk
0:00:42]} 29... Rg5 {[%clk 0:00:23.9]} 30. Rg3 {[%clk 0:00:41.6]} 30... Rd5
{[%clk 0:00:23.4]} 31. Qb8 {[%clk 0:00:36.6]} 31... Ke7 {[%clk 0:00:23.1]} 32.
Rg8 {[%clk 0:00:35.5]} 32... Be8 {[%clk 0:00:23.6]} 33. Qb4 {[%clk 0:00:32.9]}
33... h5 {[%clk 0:00:22.8]} 34. Qc3 {[%clk 0:00:32]} 34... Kd7 {[%clk
0:00:22.4]} 35. Qe3 {[%clk 0:00:27.2]} 35... Bf6 {[%clk 0:00:21.7]} 36. Qh6
{[%clk 0:00:20.9]} 36... Bxd4 {[%clk 0:00:15.1]} 37. Qf8 {[%clk 0:00:20.2]}
37... Bxc5 {[%clk 0:00:15.2]} 38. Qxe8+ {[%clk 0:00:20.3]} 38... Kd6 {[%clk
0:00:15.8]} 39. Qxf7 {[%clk 0:00:19.6]} 39... Rf5 {[%clk 0:00:12.3]} 40. Rd8+
{[%clk 0:00:17.5]} 40... Ke5 {[%clk 0:00:12.8]} 41. Qg7+ {[%clk 0:00:17.6]}
41... Ke4 {[%clk 0:00:13.1]} 42. Qg6 {[%clk 0:00:16.5]} 42... Bxf2+ {[%clk
0:00:12.5]} 43. Kf1 {[%clk 0:00:16.5]} 43... Bh4+ {[%clk 0:00:07.9]} 44. Ke2
{[%clk 0:00:16.3]} 44... Bxd8 {[%clk 0:00:08.4]} 45. g4 {[%clk 0:00:15.4]} 45...
hxg4 {[%clk 0:00:06.7]} 46. hxg4 {[%clk 0:00:16.3]} 46... Bh4 {[%clk 0:00:02.6]}
47. gxf5 {[%clk 0:00:16.3]} 47... exf5 {[%clk 0:00:03.2]} 48. Qxc6+ {[%clk
0:00:15.8]} 48... Kf4 {[%clk 0:00:01.8]} 49. Qxc7+ {[%clk 0:00:15.5]} 49... Kg4
{[%clk 0:00:02.4]} 50. Qc4+ {[%clk 0:00:14.5]} 1-0

[Event "*** SCC Grand Prix: Titled Tuesday Blitz"]
[Site "Chess.com"]
[Date "2020.08.25"]
[Round "5"]
[White "Barmen_EV"]
[Black "ftorodent"]
[Result "1-0"]
[WhiteElo "2466"]
[BlackElo "2677"]
[TimeControl "180+1"]
[EndTime "10:58:05 PDT"]
[Termination "Barmen_EV won on time"]

1. d4 {[%clk 0:03:00.9]} 1... f5 {[%clk 0:02:59.4]} 2. c4 {[%clk 0:03:01.2]}
2... Nf6 {[%clk 0:02:59.1]} 3. Nc3 {[%clk 0:03:01.8]} 3... e6 {[%clk 0:02:59.2]}
4. Nf3 {[%clk 0:03:01.6]} 4... Bb4 {[%clk 0:02:59]} 5. Bd2 {[%clk 0:03:01.6]}
5... O-O {[%clk 0:02:58.4]} 6. g3 {[%clk 0:03:00.9]} 6... d6 {[%clk 0:02:57.6]}
7. Bg2 {[%clk 0:02:58.7]} 7... Qe7 {[%clk 0:02:57.5]} 8. O-O {[%clk 0:02:58.5]}
8... Bxc3 {[%clk 0:02:41.5]} 9. Bxc3 {[%clk 0:02:58.2]} 9... Ne4 {[%clk
0:02:42]} 10. Qc2 {[%clk 0:02:57.3]} 10... Nd7 {[%clk 0:02:37.1]} 11. Rfd1
{[%clk 0:02:57.3]} 11... e5 {[%clk 0:02:21.7]} 12. dxe5 {[%clk 0:02:50.2]} 12...
dxe5 {[%clk 0:02:21.7]} 13. Be1 {[%clk 0:02:43.7]} 13... Ndf6 {[%clk 0:02:08.7]}
14. b4 {[%clk 0:02:37.7]} 14... f4 {[%clk 0:02:05.9]} 15. Qb2 {[%clk 0:02:30.3]}
15... Re8 {[%clk 0:02:02.6]} 16. b5 {[%clk 0:02:18.9]} 16... Bf5 {[%clk
0:01:44.7]} 17. Bb4 {[%clk 0:02:15.1]} 17... Qe6 {[%clk 0:01:44.5]} 18. Nd2
{[%clk 0:01:57.8]} 18... Nxd2 {[%clk 0:01:29]} 19. Rxd2 {[%clk 0:01:58.7]} 19...
Ne4 {[%clk 0:01:16.4]} 20. Rd5 {[%clk 0:01:55.7]} 20... c6 {[%clk 0:01:11.6]}
21. Rd3 {[%clk 0:01:42.8]} 21... c5 {[%clk 0:00:52.8]} 22. Bxc5 {[%clk
0:01:39.6]} 22... Rac8 {[%clk 0:00:44.9]} 23. Bxa7 {[%clk 0:01:38.9]} 23... Qxc4
{[%clk 0:00:42]} 24. a4 {[%clk 0:01:31.1]} 24... Nc3 {[%clk 0:00:35.6]} 25. Rxc3
{[%clk 0:01:17.7]} 25... Qxc3 {[%clk 0:00:35.2]} 26. Qxc3 {[%clk 0:01:18.6]}
26... Rxc3 {[%clk 0:00:35.2]} 27. Bxb7 {[%clk 0:01:19.5]} 27... Be6 {[%clk
0:00:26]} 28. b6 {[%clk 0:01:11.1]} 28... Bc4 {[%clk 0:00:23.6]} 29. Bc6 {[%clk
0:01:01.3]} 29... Rd8 {[%clk 0:00:22.8]} 30. b7 {[%clk 0:00:56.8]} 30... Rb3
{[%clk 0:00:22.8]} 31. e3 {[%clk 0:00:36.9]} 31... Ba6 {[%clk 0:00:19.6]} 32.
b8=Q {[%clk 0:00:31.7]} 32... Rbxb8 {[%clk 0:00:19.5]} 33. Bxb8 {[%clk
0:00:30.9]} 33... Rxb8 {[%clk 0:00:19.9]} 34. gxf4 {[%clk 0:00:29.6]} 34... exf4
{[%clk 0:00:20]} 35. exf4 {[%clk 0:00:30.5]} 35... Kf7 {[%clk 0:00:17.6]} 36.
Bb5 {[%clk 0:00:27.3]} 36... Bb7 {[%clk 0:00:10.6]} 37. a5 {[%clk 0:00:26.1]}
37... Bf3 {[%clk 0:00:09.3]} 38. Bc4+ {[%clk 0:00:23.7]} 38... Kf6 {[%clk
0:00:09.8]} 39. a6 {[%clk 0:00:23.3]} 39... Rb4 {[%clk 0:00:09.8]} 40. Bf1
{[%clk 0:00:15]} 40... Rxf4 {[%clk 0:00:09.7]} 41. h3 {[%clk 0:00:15.9]} 41...
Rf5 {[%clk 0:00:09.1]} 42. a7 {[%clk 0:00:15.2]} 42... Rg5+ {[%clk 0:00:08.6]}
43. Kh2 {[%clk 0:00:16]} 43... Ba8 {[%clk 0:00:08.7]} 44. Ra6+ {[%clk
0:00:13.4]} 44... Ke7 {[%clk 0:00:07.7]} 45. f4 {[%clk 0:00:09.5]} 45... Rf5
{[%clk 0:00:05.8]} 46. Bg2 {[%clk 0:00:08.2]} 1-0

[Event "*** SCC Grand Prix: Titled Tuesday Blitz"]
[Site "Chess.com"]
[Date "2020.08.25"]
[Round "5"]
[White "Phenix2k"]
[Black "zmeeed67"]
[Result "1-0"]
[WhiteElo "2125"]
[BlackElo "2440"]
[TimeControl "180+1"]
[EndTime "10:58:05 PDT"]
[Termination "Phenix2k won on time"]

1. d4 {[%clk 0:03:00.9]} 1... Nc6 {[%clk 0:02:59.7]} 2. Nf3 {[%clk 0:02:59.3]}
2... d6 {[%clk 0:02:59.5]} 3. e4 {[%clk 0:02:57.1]} 3... Nf6 {[%clk 0:02:58.8]}
4. Nc3 {[%clk 0:02:56.4]} 4... Bg4 {[%clk 0:02:58.2]} 5. Bb5 {[%clk 0:02:55.8]}
5... a6 {[%clk 0:02:57.5]} 6. Bxc6+ {[%clk 0:02:53.8]} 6... bxc6 {[%clk
0:02:57.7]} 7. h3 {[%clk 0:02:54.3]} 7... Bc8 {[%clk 0:02:57.7]} 8. Be3 {[%clk
0:02:53.1]} 8... e6 {[%clk 0:02:58]} 9. d5 {[%clk 0:02:50.1]} 9... cxd5 {[%clk
0:02:54.7]} 10. exd5 {[%clk 0:02:50.1]} 10... e5 {[%clk 0:02:54.8]} 11. Qd2
{[%clk 0:02:47.1]} 11... Be7 {[%clk 0:02:54.3]} 12. g4 {[%clk 0:02:41.9]} 12...
Rb8 {[%clk 0:02:41.7]} 13. O-O-O {[%clk 0:02:40.9]} 13... Bd7 {[%clk 0:02:34.3]}
14. Ng5 {[%clk 0:02:37.2]} 14... Qc8 {[%clk 0:02:24]} 15. Kb1 {[%clk 0:02:29.7]}
15... Qb7 {[%clk 0:02:22]} 16. Qc1 {[%clk 0:02:29.9]} 16... Qb4 {[%clk
0:02:09.2]} 17. Ka1 {[%clk 0:02:25.8]} 17... h6 {[%clk 0:02:05.9]} 18. a3 {[%clk
0:02:17.7]} 18... Qc4 {[%clk 0:01:53]} 19. Nf3 {[%clk 0:02:16.1]} 19... Ne4
{[%clk 0:01:39.3]} 20. Nd2 {[%clk 0:02:04.7]} 20... Nxd2 {[%clk 0:01:35.4]} 21.
Qxd2 {[%clk 0:02:00.7]} 21... a5 {[%clk 0:01:30.1]} 22. Rhe1 {[%clk 0:01:44.3]}
22... O-O {[%clk 0:01:24.9]} 23. f3 {[%clk 0:01:25.6]} 23... Bh4 {[%clk
0:01:21]} 24. Rg1 {[%clk 0:01:21.5]} 24... f6 {[%clk 0:00:44.1]} 25. Ne4 {[%clk
0:01:10.9]} 25... Rb7 {[%clk 0:00:35.6]} 26. Bxh6 {[%clk 0:01:02.3]} 26... gxh6
{[%clk 0:00:21.2]} 27. Qxh6 {[%clk 0:01:00.5]} 27... Bg5 {[%clk 0:00:17.3]} 28.
Qg6+ {[%clk 0:00:58.7]} 28... Kh8 {[%clk 0:00:16.2]} 29. Nxg5 {[%clk 0:00:41.2]}
29... fxg5 {[%clk 0:00:16]} 30. Qh6+ {[%clk 0:00:41.3]} 30... Kg8 {[%clk
0:00:16]} 31. Qxg5+ {[%clk 0:00:41.5]} 31... Kh8 {[%clk 0:00:15.7]} 32. Qe7
{[%clk 0:00:32.1]} 32... Rxf3 {[%clk 0:00:09.7]} 33. Qd8+ {[%clk 0:00:13.2]}
33... Kg7 {[%clk 0:00:06.8]} 34. Qxd7+ {[%clk 0:00:13.3]} 34... Rf7 {[%clk
0:00:07]} 35. Qe6 {[%clk 0:00:12.6]} 35... Qxc2 {[%clk 0:00:06.9]} 36. Rb1
{[%clk 0:00:12.4]} 36... Rf2 {[%clk 0:00:06.8]} 37. Qe7+ {[%clk 0:00:11.2]}
37... Kg8 {[%clk 0:00:07]} 38. Qe8+ {[%clk 0:00:11]} 38... Kg7 {[%clk
0:00:07.2]} 39. Qd7+ {[%clk 0:00:08.7]} 39... Kg6 {[%clk 0:00:06.1]} 40. Qe6+
{[%clk 0:00:08.5]} 40... Kg7 {[%clk 0:00:06.2]} 41. Qd7+ {[%clk 0:00:06.3]}
41... Kg6 {[%clk 0:00:06.2]} 42. Qe8+ {[%clk 0:00:05.7]} 42... Kg7 {[%clk
0:00:06]} 43. Qe7+ {[%clk 0:00:05.8]} 43... Rf7 {[%clk 0:00:05.9]} 44. Qg5+
{[%clk 0:00:05.5]} 44... Kf8 {[%clk 0:00:04.4]} 45. Qd8+ {[%clk 0:00:05.6]}
45... Kg7 {[%clk 0:00:04]} 46. g5 {[%clk 0:00:05.5]} 46... Qb3 {[%clk 0:00:02]}
47. g6 {[%clk 0:00:04.8]} 47... Rf8 {[%clk 0:00:01.4]} 48. Qe7+ {[%clk 0:00:05]}
1-0

[Event "*** SCC Grand Prix: Titled Tuesday Blitz"]
[Site "Chess.com"]
[Date "2020.08.25"]
[Round "5"]
[White "Andreikka"]
[Black "Korchmar_Vasiliy"]
[Result "0-1"]
[WhiteElo "2823"]
[BlackElo "2614"]
[TimeControl "180+1"]
[EndTime "10:58:08 PDT"]
[Termination "Korchmar_Vasiliy won by checkmate"]

1. c4 {[%clk 0:02:57.4]} 1... e5 {[%clk 0:02:59.2]} 2. g3 {[%clk 0:02:55.2]}
2... Nf6 {[%clk 0:02:59]} 3. Bg2 {[%clk 0:02:52.7]} 3... Bc5 {[%clk 0:02:58.8]}
4. Nc3 {[%clk 0:02:34.5]} 4... c6 {[%clk 0:02:58.1]} 5. Nf3 {[%clk 0:02:30.5]}
5... e4 {[%clk 0:02:55.6]} 6. Nh4 {[%clk 0:02:30.7]} 6... d5 {[%clk 0:02:54.3]}
7. d4 {[%clk 0:02:31.3]} 7... Bb6 {[%clk 0:02:46.6]} 8. cxd5 {[%clk 0:02:26.7]}
8... cxd5 {[%clk 0:02:47.5]} 9. f3 {[%clk 0:02:27.1]} 9... Nc6 {[%clk
0:02:36.9]} 10. Be3 {[%clk 0:02:22.3]} 10... h6 {[%clk 0:02:16.9]} 11. fxe4
{[%clk 0:02:17.9]} 11... dxe4 {[%clk 0:02:11.9]} 12. Nxe4 {[%clk 0:02:00]} 12...
Nxe4 {[%clk 0:02:01.6]} 13. Bxe4 {[%clk 0:02:00.9]} 13... Nxd4 {[%clk
0:01:53.2]} 14. O-O {[%clk 0:02:00]} 14... O-O {[%clk 0:01:43.1]} 15. Qd3 {[%clk
0:01:59.6]} 15... Nc2 {[%clk 0:01:19.9]} 16. Qxc2 {[%clk 0:01:19.4]} 16... Bxe3+
{[%clk 0:01:19.4]} 17. Kg2 {[%clk 0:01:20.3]} 17... Be6 {[%clk 0:01:20]} 18.
Rad1 {[%clk 0:01:17.8]} 18... Qa5 {[%clk 0:01:10.6]} 19. Rd6 {[%clk 0:01:09.3]}
19... Qxa2 {[%clk 0:00:58.8]} 20. Rf3 {[%clk 0:00:59.8]} 20... Rac8 {[%clk
0:00:52.9]} 21. Qd3 {[%clk 0:00:48.3]} 21... Bc5 {[%clk 0:00:52.1]} 22. Rxe6
{[%clk 0:00:43.4]} 22... Qxe6 {[%clk 0:00:50.3]} 23. Bd5 {[%clk 0:00:44.1]}
23... Qe5 {[%clk 0:00:18.3]} 24. Ng6 {[%clk 0:00:33]} 24... Qxb2 {[%clk
0:00:18.5]} 25. Kh3 {[%clk 0:00:22.6]} 25... Qd4 {[%clk 0:00:14.2]} 26. Qf5
{[%clk 0:00:21.9]} 26... Rcd8 {[%clk 0:00:07]} 27. Bxf7+ {[%clk 0:00:16.2]}
27... Rxf7 {[%clk 0:00:07.9]} 28. Qxf7+ {[%clk 0:00:16.8]} 28... Kh7 {[%clk
0:00:08.6]} 29. Ne7 {[%clk 0:00:17.3]} 29... Qd7+ {[%clk 0:00:07.8]} 30. g4
{[%clk 0:00:16.8]} 30... Qxe7 {[%clk 0:00:07.6]} 31. Qf5+ {[%clk 0:00:13.5]}
31... Kh8 {[%clk 0:00:07.8]} 32. Qg6 {[%clk 0:00:11.4]} 32... Rf8 {[%clk
0:00:07.5]} 33. Qd3 {[%clk 0:00:06.4]} 33... Rxf3+ {[%clk 0:00:06.8]} 34. exf3
{[%clk 0:00:07.3]} 34... b6 {[%clk 0:00:04.9]} 35. Qd5 {[%clk 0:00:06.1]} 35...
Qd6 {[%clk 0:00:05]} 36. Qf7 {[%clk 0:00:05.8]} 36... Qf8 {[%clk 0:00:05.2]} 37.
Qd5 {[%clk 0:00:05.9]} 37... a5 {[%clk 0:00:05.4]} 38. f4 {[%clk 0:00:05.9]}
38... Qxf4 {[%clk 0:00:04.6]} 39. Qd8+ {[%clk 0:00:06.2]} 39... Qf8 {[%clk
0:00:04.7]} 40. Qd3 {[%clk 0:00:07.1]} 40... a4 {[%clk 0:00:04.8]} 41. Qc4
{[%clk 0:00:08]} 41... Qf3+ {[%clk 0:00:03.7]} 42. Kh4 {[%clk 0:00:08.3]} 42...
Be7+ {[%clk 0:00:03.5]} 43. Kh5 {[%clk 0:00:09.2]} 43... Qh3+ {[%clk 0:00:02]}
44. Kg6 {[%clk 0:00:09.7]} 44... Bf8 {[%clk 0:00:01.7]} 45. Qe4 {[%clk
0:00:02.6]} 45... Qf1 {[%clk 0:00:01.4]} 46. Qe8 {[%clk 0:00:01.8]} 46... Qf6+
{[%clk 0:00:01.1]} 47. Kh5 {[%clk 0:00:02.7]} 47... a3 {[%clk 0:00:01.3]} 48. g5
{[%clk 0:00:03.6]} 48... Qxg5# {[%clk 0:00:01.4]} 0-1

[Event "*** SCC Grand Prix: Titled Tuesday Blitz"]
[Site "Chess.com"]
[Date "2020.08.25"]
[Round "5"]
[White "Kaua18"]
[Black "BlackBoarder"]
[Result "0-1"]
[WhiteElo "2402"]
[BlackElo "2552"]
[TimeControl "180+1"]
[EndTime "10:58:08 PDT"]
[Termination "BlackBoarder won by checkmate"]

1. e4 {[%clk 0:01:48.3]} 1... e6 {[%clk 0:02:59.3]} 2. d4 {[%clk 0:01:48.3]}
2... d5 {[%clk 0:02:59.4]} 3. Nd2 {[%clk 0:01:47.9]} 3... c5 {[%clk 0:02:59.2]}
4. exd5 {[%clk 0:01:47.6]} 4... Qxd5 {[%clk 0:02:58.8]} 5. Ngf3 {[%clk
0:01:47.7]} 5... cxd4 {[%clk 0:02:58.5]} 6. Bc4 {[%clk 0:01:48]} 6... Qd6 {[%clk
0:02:58.8]} 7. Nb3 {[%clk 0:01:47.2]} 7... Qb4+ {[%clk 0:02:58.5]} 8. Nbd2
{[%clk 0:01:46.7]} 8... Nc6 {[%clk 0:02:58.5]} 9. O-O {[%clk 0:01:46.6]} 9...
Nf6 {[%clk 0:02:57.9]} 10. a3 {[%clk 0:01:43.9]} 10... Qb6 {[%clk 0:02:43.4]}
11. Nb3 {[%clk 0:01:42.4]} 11... Bd7 {[%clk 0:02:31.1]} 12. Nbxd4 {[%clk
0:01:40.7]} 12... Nxd4 {[%clk 0:02:30.2]} 13. Qxd4 {[%clk 0:01:41.6]} 13... Qxd4
{[%clk 0:02:26.8]} 14. Nxd4 {[%clk 0:01:42.5]} 14... Rc8 {[%clk 0:02:27]} 15.
Bb3 {[%clk 0:01:39.7]} 15... Bc5 {[%clk 0:02:23.5]} 16. Nf3 {[%clk 0:01:34.4]}
16... Bb5 {[%clk 0:01:49.7]} 17. c4 {[%clk 0:01:27.9]} 17... Bc6 {[%clk
0:01:40]} 18. Ne5 {[%clk 0:01:21.7]} 18... Ke7 {[%clk 0:01:39.7]} 19. Ba2 {[%clk
0:01:13.4]} 19... Be4 {[%clk 0:01:36.3]} 20. Re1 {[%clk 0:00:58.2]} 20... Rhd8
{[%clk 0:01:24]} 21. Bg5 {[%clk 0:00:44.1]} 21... Bf5 {[%clk 0:00:42.9]} 22.
Rad1 {[%clk 0:00:31.6]} 22... Bd4 {[%clk 0:00:38.9]} 23. b4 {[%clk 0:00:22.9]}
23... Bxe5 {[%clk 0:00:36.2]} 24. Rxd8 {[%clk 0:00:19.3]} 24... Rxd8 {[%clk
0:00:35.1]} 25. g4 {[%clk 0:00:19.7]} 25... Bc3 {[%clk 0:00:24.4]} 26. Rc1
{[%clk 0:00:06.7]} 26... Bd2 {[%clk 0:00:21.9]} 27. Bxd2 {[%clk 0:00:06.2]}
27... Rxd2 {[%clk 0:00:21.4]} 28. gxf5 {[%clk 0:00:07.1]} 28... Rxa2 {[%clk
0:00:21.2]} 29. fxe6 {[%clk 0:00:08]} 29... fxe6 {[%clk 0:00:21.4]} 30. Rc3
{[%clk 0:00:08.6]} 30... Ne4 {[%clk 0:00:18.9]} 31. Re3 {[%clk 0:00:08.2]} 31...
Nxf2 {[%clk 0:00:18.4]} 32. c5 {[%clk 0:00:07.7]} 32... g6 {[%clk 0:00:15.4]}
33. Rf3 {[%clk 0:00:06.8]} 33... Ng4 {[%clk 0:00:12]} 34. Rh3 {[%clk 0:00:05.7]}
34... h5 {[%clk 0:00:10.7]} 35. Rb3 {[%clk 0:00:05]} 35... e5 {[%clk 0:00:09.4]}
36. b5 {[%clk 0:00:05.1]} 36... Kd7 {[%clk 0:00:08.9]} 37. Rd3+ {[%clk
0:00:05.3]} 37... Kc7 {[%clk 0:00:09.3]} 38. Rf3 {[%clk 0:00:05.6]} 38... e4
{[%clk 0:00:04.7]} 39. Rf7+ {[%clk 0:00:05.9]} 39... Kc8 {[%clk 0:00:05.2]} 40.
Rf8+ {[%clk 0:00:06.2]} 40... Kd7 {[%clk 0:00:05.6]} 41. Rf7+ {[%clk 0:00:06.6]}
41... Ke6 {[%clk 0:00:06]} 42. Rxb7 {[%clk 0:00:06.6]} 42... e3 {[%clk
0:00:06.6]} 43. Rb8 {[%clk 0:00:07.1]} 43... Kd5 {[%clk 0:00:05.9]} 44. Re8
{[%clk 0:00:07.8]} 44... Kxc5 {[%clk 0:00:05.8]} 45. Kf1 {[%clk 0:00:06.5]}
45... Kxb5 {[%clk 0:00:05.8]} 46. h3 {[%clk 0:00:06]} 46... Nh2+ {[%clk
0:00:04.2]} 47. Kg1 {[%clk 0:00:06.3]} 47... Nf3+ {[%clk 0:00:04.5]} 48. Kf1
{[%clk 0:00:06]} 48... Rf2# {[%clk 0:00:04.7]} 0-1

[Event "*** SCC Grand Prix: Titled Tuesday Blitz"]
[Site "Chess.com"]
[Date "2020.08.25"]
[Round "5"]
[White "Bodnar_Mykola"]
[Black "Tssunami"]
[Result "1-0"]
[WhiteElo "2502"]
[BlackElo "2352"]
[TimeControl "180+1"]
[EndTime "10:58:08 PDT"]
[Termination "Bodnar_Mykola won by resignation"]

1. d4 {[%clk 0:03:00.9]} 1... Nf6 {[%clk 0:02:56.8]} 2. c4 {[%clk 0:03:01.3]}
2... e6 {[%clk 0:02:56.9]} 3. Nc3 {[%clk 0:03:01.5]} 3... Bb4 {[%clk 0:02:57]}
4. Qc2 {[%clk 0:02:59.8]} 4... O-O {[%clk 0:02:55.9]} 5. a3 {[%clk 0:02:57.2]}
5... Bxc3+ {[%clk 0:02:55.8]} 6. Qxc3 {[%clk 0:02:58.1]} 6... d5 {[%clk
0:02:55.9]} 7. cxd5 {[%clk 0:02:58.4]} 7... exd5 {[%clk 0:02:55.5]} 8. Bg5
{[%clk 0:02:58.5]} 8... c6 {[%clk 0:02:55.3]} 9. Nf3 {[%clk 0:02:53.9]} 9... h6
{[%clk 0:02:55.3]} 10. Bxf6 {[%clk 0:02:51.5]} 10... Qxf6 {[%clk 0:02:54.9]} 11.
e3 {[%clk 0:02:52.4]} 11... Bf5 {[%clk 0:02:49.4]} 12. Be2 {[%clk 0:02:51.9]}
12... Nd7 {[%clk 0:02:49.1]} 13. O-O {[%clk 0:02:52]} 13... Rae8 {[%clk
0:02:42]} 14. b4 {[%clk 0:02:50.1]} 14... Bg4 {[%clk 0:02:33.7]} 15. b5 {[%clk
0:02:48]} 15... cxb5 {[%clk 0:02:30]} 16. Qc7 {[%clk 0:02:01.7]} 16... Qc6
{[%clk 0:02:14.7]} 17. Rfc1 {[%clk 0:01:57.6]} 17... Qxc7 {[%clk 0:02:09.5]} 18.
Rxc7 {[%clk 0:01:58.5]} 18... Rb8 {[%clk 0:02:09.9]} 19. Bxb5 {[%clk 0:01:57.7]}
19... Bxf3 {[%clk 0:02:06.9]} 20. Rxd7 {[%clk 0:01:51.4]} 20... Be4 {[%clk
0:01:59.1]} 21. f3 {[%clk 0:01:51.4]} 21... Bg6 {[%clk 0:01:50.3]} 22. Rxd5
{[%clk 0:01:47.2]} 22... Rfc8 {[%clk 0:01:49.3]} 23. Rc5 {[%clk 0:01:38.1]}
23... a6 {[%clk 0:01:44.6]} 24. Be2 {[%clk 0:01:31.3]} 24... Rxc5 {[%clk
0:01:26.7]} 25. dxc5 {[%clk 0:01:32.2]} 25... Rd8 {[%clk 0:01:25.8]} 26. Rd1
{[%clk 0:01:19.3]} 26... Rc8 {[%clk 0:01:19.8]} 27. Rc1 {[%clk 0:01:14.9]} 27...
Kf8 {[%clk 0:01:19.3]} 28. c6 {[%clk 0:01:10.4]} 28... Rxc6 {[%clk 0:01:16.6]}
29. Rxc6 {[%clk 0:01:09.8]} 29... bxc6 {[%clk 0:01:17.5]} 30. Bxa6 {[%clk
0:01:10.4]} 30... Ke7 {[%clk 0:01:17.9]} 31. Bc4 {[%clk 0:01:10.5]} 31... Kd6
{[%clk 0:01:17.9]} 32. Kf2 {[%clk 0:01:09.1]} 32... Kc5 {[%clk 0:01:18.5]} 33.
Be2 {[%clk 0:01:06.6]} 33... Bc2 {[%clk 0:01:15.2]} 34. Ke1 {[%clk 0:01:04.8]}
34... f6 {[%clk 0:01:12]} 35. Kd2 {[%clk 0:01:04.9]} 35... Bb3 {[%clk
0:01:12.2]} 36. Kc3 {[%clk 0:01:04.8]} 36... Ba4 {[%clk 0:01:09.6]} 37. g3
{[%clk 0:01:01.9]} 37... g5 {[%clk 0:00:59.9]} 38. f4 {[%clk 0:00:59.2]} 38...
Kd5 {[%clk 0:00:57.8]} 39. Bf3+ {[%clk 0:00:59]} 39... Kc5 {[%clk 0:00:56.1]}
40. Be2 {[%clk 0:00:57.4]} 40... Kd5 {[%clk 0:00:55.7]} 41. Bd3 {[%clk
0:00:51.9]} 41... Bd1 {[%clk 0:00:51.3]} 42. e4+ {[%clk 0:00:48.1]} 42... Kc5
{[%clk 0:00:50.8]} 43. Bc4 {[%clk 0:00:47.8]} 43... Bf3 {[%clk 0:00:48.5]} 44.
e5 {[%clk 0:00:47.8]} 44... fxe5 {[%clk 0:00:48.4]} 45. fxe5 {[%clk 0:00:48.7]}
45... Bd1 {[%clk 0:00:45.8]} 46. Bb3 {[%clk 0:00:45.1]} 46... Be2 {[%clk
0:00:45.8]} 47. a4 {[%clk 0:00:44]} 47... Ba6 {[%clk 0:00:45.1]} 48. a5 {[%clk
0:00:43.1]} 48... Be2 {[%clk 0:00:44.5]} 49. e6 {[%clk 0:00:40.2]} 49... Kd6
{[%clk 0:00:43.9]} 50. Bc4 {[%clk 0:00:39]} 50... Bf3 {[%clk 0:00:43.7]} 51. a6
{[%clk 0:00:38.6]} 51... c5 {[%clk 0:00:44.1]} 52. a7 {[%clk 0:00:38.6]} 52...
Ba8 {[%clk 0:00:42.4]} 53. Kb3 {[%clk 0:00:38.7]} 53... Bc6 {[%clk 0:00:41.7]}
54. h4 {[%clk 0:00:35.8]} 54... gxh4 {[%clk 0:00:41.4]} 55. gxh4 {[%clk
0:00:36.7]} 55... Ke7 {[%clk 0:00:41.6]} 56. Kc3 {[%clk 0:00:37.6]} 56... Kf6
{[%clk 0:00:40.1]} 57. Kd3 {[%clk 0:00:36.6]} 57... Bb7 {[%clk 0:00:37.8]} 58.
Ke3 {[%clk 0:00:37.5]} 58... Bc6 {[%clk 0:00:36.5]} 59. Kf4 {[%clk 0:00:37.8]}
59... Bb7 {[%clk 0:00:36.5]} 60. e7 {[%clk 0:00:32.5]} 60... Kxe7 {[%clk
0:00:36.3]} 61. Kf5 {[%clk 0:00:33.4]} 61... h5 {[%clk 0:00:28.9]} 62. Kg5
{[%clk 0:00:33.2]} 62... Bf3 {[%clk 0:00:28]} 63. Be2 {[%clk 0:00:33.3]} 63...
Be4 {[%clk 0:00:26.4]} 64. Kf4 {[%clk 0:00:30.3]} 64... Bb7 {[%clk 0:00:24.4]}
65. Bf3 {[%clk 0:00:30.2]} 1-0